fUST/lending_fUST_20251029
["ID","MTS","AMOUNT","RATE_DAILY","PERIOD"]
[392594076,1761715838559,-500.0,0.00021917,2]
[392594077,1761715838568,-766.35,0.00021917,2]
[392594078,1761715838578,-500.0,0.00021917,2]
[392594079,1761715838587,-500.0,0.00021917,2]
[392594080,1761715838596,-500.0,0.00021917,2]
[392594081,1761715838605,-293.25577348,0.00021917,2]
[392594082,1761715838614,-500.0,0.00021917,2]
[392594083,1761715838624,-240.66111705,0.00021917,2]
[392594084,1761715838633,-500.0,0.00021917,2]
[392594085,1761715838642,-500.0,0.00021917,2]
[392594086,1761715838651,-500.0,0.00021917,2]
[392594087,1761715838660,-500.0,0.00021917,2]
[392594088,1761715838669,-500.0,0.00021917,2]
[392594089,1761715838678,-500.0,0.00021917,2]
[392594090,1761715838687,-500.0,0.00021917,2]
[392594091,1761715838696,-500.0,0.00021917,2]
[392594092,1761715838705,-500.0,0.00021917,2]
[392594093,1761715838715,-500.0,0.00021917,2]
[392594094,1761715838724,-500.0,0.00021917,2]
[392594095,1761715838733,-500.0,0.00021917,2]
[392594096,1761715838742,-380.98285763,0.00021917,2]
[392594097,1761715838752,-500.0,0.00021917,2]
[392594098,1761715838762,-500.0,0.00021917,2]
[392594099,1761715838771,-312.85853062,0.00021917,2]
[392594100,1761715838780,-500.0,0.00021917,2]
[392594101,1761715838789,-500.0,0.00021917,2]
[392594102,1761715838798,-500.0,0.00021917,2]
[392594103,1761715838809,-500.0,0.00021917,2]
[392594104,1761715838818,-497.19684799,0.00021917,2]
[392594105,1761715838827,-186.32140526,0.00021917,2]
[392594106,1761715838836,-500.0,0.00021917,2]
[392594107,1761715838845,-500.0,0.00021917,2]
[392594108,1761715838854,-500.0,0.00021917,2]
[392594109,1761715838863,-500.0,0.00021917,2]
[392594110,1761715838873,-500.0,0.00021917,2]
[392594111,1761715838882,-500.0,0.00021917,2]
[392594112,1761715838891,-500.0,0.00021917,2]
[392594113,1761715838901,-500.0,0.00021917,2]
[392594114,1761715838910,-500.0,0.00021917,2]
[392594115,1761715838919,-500.0,0.00021917,2]
[392594116,1761715838928,-500.0,0.00021917,2]
[392594117,1761715838937,-500.0,0.00021917,2]
[392594118,1761715838947,-500.0,0.00021917,2]
[392594119,1761715838956,-500.0,0.00021917,2]
[392594120,1761715838965,-500.0,0.00021917,2]
[392594121,1761715838978,-500.0,0.00021917,2]
[392594122,1761715838987,-500.0,0.00021917,2]
[392594123,1761715838996,-500.0,0.00021917,2]
[392594124,1761715839006,-702.54,0.00021917,2]
[392594125,1761715839015,-824.79,0.00021917,2]
[392594126,1761715839024,-500.0,0.00021917,2]
[392594127,1761715839033,-500.0,0.00021917,2]
[392594128,1761715839043,-500.0,0.00021917,2]
[392594129,1761715839052,-500.0,0.00021917,2]
[392594130,1761715839062,-500.0,0.00021917,2]
[392594131,1761715839071,-418.0631717,0.00021917,2]
[392594132,1761715839080,-500.0,0.00021917,2]
[392594133,1761715839090,-500.0,0.00021917,2]
[392594134,1761715839099,-500.0,0.00021917,2]
[392594135,1761715839108,-533.39521788,0.00021917,2]
[392594136,1761715839117,-500.0,0.00021917,2]
[392594137,1761715839127,-500.0,0.00021917,2]
[392594138,1761715839136,-500.0,0.00021917,2]
[392594139,1761715839145,-500.0,0.00021917,2]
[392594140,1761715839154,-500.0,0.00021917,2]
[392594141,1761715839163,-500.0,0.00021917,2]
[392594142,1761715839172,-675.4,0.00021917,2]
[392594143,1761715839181,-500.0,0.00021917,2]
[392594144,1761715839189,-500.0,0.00021917,2]
[392594145,1761715839199,-500.0,0.00021917,2]
[392594146,1761715839208,-558.85580673,0.00021917,2]
[392594147,1761715839217,-500.0,0.00021917,2]
[392594148,1761715839226,-500.0,0.00021917,2]
[392594149,1761715839235,-500.0,0.00021917,2]
[392594150,1761715839245,-500.0,0.00021917,2]
[392594151,1761715839254,-500.0,0.00021917,2]
[392594152,1761715839264,-500.0,0.00021917,2]
[392594153,1761715839273,-500.0,0.00021917,2]
[392594154,1761715839282,-500.0,0.00021917,2]
[392594155,1761715839291,-500.0,0.00021917,2]
[392594156,1761715839300,-500.0,0.00021917,2]
[392594157,1761715839310,-500.0,0.00021917,2]
[392594158,1761715839319,-500.0,0.00021917,2]
[392594159,1761715839328,-500.0,0.00021917,2]
[392594160,1761715839338,-500.0,0.00021917,2]
[392594161,1761715839347,-500.0,0.00021917,2]
[392594162,1761715839357,-500.0,0.00021917,2]
[392594163,1761715839366,-500.0,0.00021917,2]
[392594164,1761715839375,-500.0,0.00021917,2]
[392594165,1761715839385,-574.63636146,0.00021917,2]
[392594166,1761715839395,-500.0,0.00021917,2]
[392594167,1761715839413,-500.0,0.00021917,2]
[392594168,1761715839425,-500.0,0.00021917,2]
[392594169,1761715839435,-500.0,0.00021917,2]
[392594170,1761715839444,-500.0,0.00021917,2]
[392594171,1761715839454,-500.0,0.00021917,2]
[392594172,1761715839463,-500.0,0.00021917,2]
[392594173,1761715839473,-500.0,0.00021917,2]
[392594174,1761715839482,-500.0,0.00021917,2]
[392594175,1761715839492,-500.0,0.00021917,2]
[392594176,1761715839502,-500.0,0.00021917,2]
[392594177,1761715839511,-500.0,0.00021917,2]
[392594178,1761715839521,-500.0,0.00021917,2]
[392594179,1761715839531,-500.0,0.00021917,2]
[392594180,1761715839540,-500.0,0.00021917,2]
[392594181,1761715839550,-500.0,0.00021917,2]
[392594182,1761715839561,-500.0,0.00021917,2]
[392594183,1761715839570,-500.0,0.00021917,2]
[392594184,1761715839580,-500.0,0.00021917,2]
[392594185,1761715839589,-500.0,0.00021917,2]
[392594186,1761715839599,-500.0,0.00021917,2]
[392594187,1761715839608,-500.0,0.00021917,2]
[392594188,1761715839618,-500.0,0.00021917,2]
[392594189,1761715839628,-500.0,0.00021917,2]
[392594190,1761715839637,-500.0,0.00021917,2]
[392594191,1761715839647,-500.0,0.00021917,2]
[392594192,1761715839657,-500.0,0.00021917,2]
[392594193,1761715839666,-500.0,0.00021917,2]
[392594194,1761715839676,-500.0,0.00021917,2]
[392594195,1761715839685,-297.96781547,0.00021917,2]
[392594196,1761715839695,-500.0,0.00021917,2]
[392594197,1761715839704,-500.0,0.00021917,2]
[392594198,1761715839714,-500.0,0.00021917,2]
[392594199,1761715839724,-500.0,0.00021917,2]
[392594200,1761715839733,-500.0,0.00021917,2]
[392594201,1761715839743,-500.0,0.00021917,2]
[392594203,1761715839753,-500.0,0.00021917,2]
[392594205,1761715839762,-500.0,0.00021917,2]
[392594207,1761715839772,-500.0,0.00021917,2]
[392594209,1761715839781,-500.0,0.00021917,2]
[392594211,1761715839790,-500.0,0.00021917,2]
[392594213,1761715839800,-500.0,0.00021917,2]
[392594218,1761715839989,-500.0,0.00021917,2]
[392594219,1761715839999,-500.0,0.00021917,2]
[392594220,1761715840009,-579.0,0.00021917,2]
[392594221,1761715840018,-500.0,0.00021917,2]
[392594222,1761715840028,-500.0,0.00021917,2]
[392594223,1761715840037,-500.0,0.00021917,2]
[392594224,1761715840047,-500.0,0.00021917,2]
[392594225,1761715840057,-500.0,0.00021917,2]
[392594226,1761715840068,-500.0,0.00021917,2]
[392594227,1761715840077,-500.0,0.00021917,2]
[392594228,1761715840087,-500.0,0.00021917,2]
[392594229,1761715840096,-500.0,0.00021917,2]
[392594231,1761715840105,-251.38716813,0.00021917,2]
[392594232,1761715840114,-500.0,0.00021917,2]
[392594233,1761715840123,-500.0,0.00021917,2]
[392594234,1761715840132,-500.0,0.00021917,2]
[392594235,1761715840141,-500.0,0.00021917,2]
[392594236,1761715840151,-500.0,0.00021917,2]
[392594237,1761715840160,-500.0,0.00021917,2]
[392594238,1761715840169,-500.0,0.00021917,2]
[392594239,1761715840179,-551.03,0.00021917,2]
[392594240,1761715840189,-500.0,0.00021917,2]
[392594241,1761715840198,-500.0,0.00021917,2]
[392594242,1761715840207,-500.0,0.00021917,2]
[392594243,1761715840216,-941.08,0.00021917,2]
[392594244,1761715840225,-500.0,0.00021917,2]
[392594246,1761715840234,-500.0,0.00021917,2]
[392594247,1761715840243,-500.0,0.00021917,2]
[392594248,1761715840252,-500.0,0.00021917,2]
[392594249,1761715840261,-500.0,0.00021917,2]
[392594250,1761715840270,-500.0,0.00021917,2]
[392594251,1761715840279,-500.0,0.00021917,2]
[392594252,1761715840289,-500.0,0.00021917,2]
[392594253,1761715840299,-500.0,0.00021917,2]
[392594254,1761715840308,-641.32401464,0.00021917,2]
[392594255,1761715840317,-500.0,0.00021917,2]
[392594256,1761715840327,-500.0,0.00021917,2]
[392594257,1761715840336,-500.0,0.00021917,2]
[392594258,1761715840345,-1215.32,0.00021917,2]
[392594259,1761715840355,-500.0,0.00021917,2]
[392594260,1761715840364,-500.0,0.00021917,2]
[392594261,1761715840373,-500.0,0.00021917,2]
[392594262,1761715840382,-500.0,0.00021917,2]
[392594263,1761715840391,-500.0,0.00021917,2]
[392594264,1761715840400,-500.0,0.00021917,2]
[392594265,1761715840410,-5036.7,0.00021917,2]
[392594266,1761715840419,-500.0,0.00021917,2]
[392594267,1761715840428,-500.0,0.00021917,2]
[392594268,1761715840437,-500.0,0.00021917,2]
[392594269,1761715840446,-1044.79,0.00021917,2]
[392594270,1761715840455,-500.0,0.00021917,2]
[392594271,1761715840464,-500.0,0.00021917,2]
[392594272,1761715840473,-314.10171873,0.00021931,2]
[392594273,1761715840482,-9577.03230472,0.00022,7]
[392594274,1761715840497,-662.14394385,0.00022,7]
[392594275,1761715840509,-29374.47192322,0.00022,7]
[392594276,1761715840610,-123.15962526,0.00022,7]
[392594550,1761715846554,-50.36084198,0.00021334,2]
[392595385,1761715912375,218.0,0.00030136,120]
[392595391,1761716059807,200.0,0.0002875,120]
[392595392,1761716061288,200.0,0.0002875,120]
[392595393,1761716062895,206.42295887,0.0002875,120]
[392595394,1761716145644,204.707,0.0003013,120]
[392595395,1761716279861,152.98,0.00016244,2]
[392595396,1761716280182,152.97,0.00016244,2]
[392595398,1761716481083,8218.27718019,0.00017429,2]
[392595399,1761716481104,1781.72281981,0.00017429,2]
[392595400,1761716738100,-169.16164656,0.00020825,5]
[392595401,1761716738121,-150.0,0.00020841,2]
[392595402,1761716738142,-170.268653,0.00020857,2]
[392595403,1761716738163,-247.59004158,0.00021356,2]
[392595404,1761716835087,-352.40995842,0.00021356,2]
[392595405,1761716835110,-992.28,0.00021723,2]
[392595406,1761716835130,-500.0,0.00021759,2]
[392595407,1761716835153,-300.0,0.00021778,2]
[392595408,1761716835173,-2114.639,0.00021779,2]
[392595409,1761716835193,-429.161,0.00021779,2]
[392595410,1761716835212,-412.0,0.00021779,2]
[392595411,1761716835232,-1200.0,0.00021914,2]
[392595412,1761716835253,-243.60101487,0.00021916,2]
[392595440,1761717032470,-1000.0,0.00020949,2]
[392595441,1761717032479,-150.0,0.0002134,2]
[392595442,1761717032489,-220.92767674,0.00021356,2]
[392595443,1761717032500,-379.07232326,0.00021356,2]
[392595444,1761717032511,-124.14283485,0.00021779,2]
[392595481,1761717038368,-25.97616515,0.00021779,2]
[392595483,1761717038377,-412.0,0.00021779,2]
[392595484,1761717038387,-256.39898513,0.00021916,2]
[392595487,1761717038396,-300.0,0.00021916,2]
[392595489,1761717038406,-1200.0,0.00021916,2]
[392595491,1761717038415,-12001.51341727,0.00021917,2]
[392595492,1761717038425,-500.0,0.00021917,2]
[392595493,1761717038434,-324.06462997,0.00021917,2]
[392595495,1761717038444,-500.0,0.00021917,2]
[392595497,1761717038453,-500.0,0.00021917,2]
[392595499,1761717038462,-673.27,0.00021917,2]
[392595501,1761717038471,-500.0,0.00021917,2]
[392595503,1761717038481,-500.0,0.00021917,2]
[392595507,1761717038490,-734.41,0.00021917,2]
[392595509,1761717038499,-500.0,0.00021917,2]
[392595511,1761717038508,-500.0,0.00021917,2]
[392595513,1761717038517,-549.34466355,0.00021917,2]
[392595515,1761717038526,-230.154,0.00021917,2]
[392595517,1761717038535,-500.0,0.00021917,2]
[392595519,1761717038544,-506.34651528,0.00021917,2]
[392595521,1761717038554,-790.42,0.00021917,2]
[392595523,1761717038563,-500.0,0.00021917,2]
[392595525,1761717038572,-500.0,0.00021917,2]
[392595527,1761717038581,-512.67786795,0.00021917,2]
[392595529,1761717038590,-500.0,0.00021917,2]
[392595531,1761717038600,-500.0,0.00021917,2]
[392595533,1761717038609,-500.0,0.00021917,2]
[392595535,1761717038618,-500.0,0.00021917,2]
[392595537,1761717038628,-500.0,0.00021917,2]
[392595539,1761717038637,-500.0,0.00021917,2]
[392595541,1761717038646,-500.0,0.00021917,2]
[392595543,1761717038655,-500.0,0.00021917,2]
[392595545,1761717038664,-500.0,0.00021917,2]
[392595547,1761717038673,-500.0,0.00021917,2]
[392595548,1761717038683,-500.0,0.00021917,2]
[392595549,1761717038692,-226.0,0.00021917,2]
[392595550,1761717038701,-500.0,0.00021917,2]
[392595551,1761717038710,-500.0,0.00021917,2]
[392595552,1761717038719,-500.0,0.00021917,2]
[392595553,1761717038727,-500.0,0.00021917,2]
[392595554,1761717038736,-557.90341704,0.00021917,2]
[392595555,1761717038745,-647.25,0.00021917,2]
[392595556,1761717038754,-500.0,0.00021917,2]
[392595557,1761717038763,-500.0,0.00021917,2]
[392595558,1761717038771,-500.0,0.00021917,2]
[392595559,1761717038780,-500.0,0.00021917,2]
[392595560,1761717038789,-500.0,0.00021917,2]
[392595561,1761717038797,-500.0,0.00021917,2]
[392595562,1761717038806,-1001.25,0.00021917,2]
[392595563,1761717038814,-500.0,0.00021917,2]
[392595564,1761717038823,-500.0,0.00021917,2]
[392595565,1761717038832,-500.0,0.00021917,2]
[392595566,1761717038842,-500.0,0.00021917,2]
[392595567,1761717038851,-500.0,0.00021917,2]
[392595568,1761717038860,-500.0,0.00021917,2]
[392595569,1761717038869,-500.0,0.00021917,2]
[392595570,1761717038878,-500.0,0.00021917,2]
[392595571,1761717038889,-500.0,0.00021917,2]
[392595572,1761717038899,-500.0,0.00021917,2]
[392595573,1761717038908,-500.0,0.00021917,2]
[392595574,1761717038917,-500.0,0.00021917,2]
[392595575,1761717038926,-500.0,0.00021917,2]
[392595576,1761717038934,-500.0,0.00021917,2]
[392595577,1761717038943,-500.0,0.00021917,2]
[392595578,1761717038952,-500.0,0.00021917,2]
[392595579,1761717038961,-500.0,0.00021917,2]
[392595580,1761717038971,-500.0,0.00021917,2]
[392595581,1761717038980,-500.0,0.00021917,2]
[392595582,1761717038989,-500.0,0.00021917,2]
[392595583,1761717038998,-500.0,0.00021917,2]
[392595584,1761717039008,-500.0,0.00021917,2]
[392595585,1761717039017,-500.0,0.00021917,2]
[392595586,1761717039026,-500.0,0.00021917,2]
[392595587,1761717039035,-500.0,0.00021917,2]
[392595588,1761717039045,-500.0,0.00021917,2]
[392595589,1761717039054,-500.0,0.00021917,2]
[392595590,1761717039063,-500.0,0.00021917,2]
[392595591,1761717039073,-500.0,0.00021917,2]
[392595592,1761717039082,-500.0,0.00021917,2]
[392595593,1761717039092,-500.0,0.00021917,2]
[392595594,1761717039101,-554.88,0.00021917,2]
[392595595,1761717039110,-500.0,0.00021917,2]
[392595596,1761717039119,-500.0,0.00021917,2]
[392595597,1761717039128,-500.0,0.00021917,2]
[392595598,1761717039137,-500.0,0.00021917,2]
[392595599,1761717039146,-528.07,0.00021917,2]
[392595600,1761717039156,-500.0,0.00021917,2]
[392595601,1761717039165,-500.0,0.00021917,2]
[392595602,1761717039174,-500.0,0.00021917,2]
[392595603,1761717039184,-500.0,0.00021917,2]
[392595604,1761717039193,-901.86,0.00021917,2]
[392595605,1761717039201,-500.0,0.00021917,2]
[392595606,1761717039210,-500.0,0.00021917,2]
[392595607,1761717039219,-500.0,0.00021917,2]
[392595608,1761717039229,-500.0,0.00021917,2]
[392595609,1761717039237,-500.0,0.00021917,2]
[392595610,1761717039247,-500.0,0.00021917,2]
[392595611,1761717039256,-1164.68,0.00021917,2]
[392595612,1761717039265,-500.0,0.00021917,2]
[392595613,1761717039274,-500.0,0.00021917,2]
[392595614,1761717039283,-500.0,0.00021917,2]
[392595615,1761717039293,-500.0,0.00021917,2]
[392595616,1761717039303,-4826.84,0.00021917,2]
[392595617,1761717039312,-500.0,0.00021917,2]
[392595618,1761717039321,-500.0,0.00021917,2]
[392595619,1761717039331,-500.0,0.00021917,2]
[392595620,1761717039340,-500.0,0.00021917,2]
[392595621,1761717039349,-500.0,0.00021917,2]
[392595622,1761717039358,-6877.6052737,0.00021941,2]
[392595623,1761717039368,-1135.0321642,0.00021965,2]
[392595624,1761717039377,-341.22561849,0.00021981,2]
[392595625,1761717039386,-3495.77,0.00021985,10]
[392595626,1761717039395,-13841.68363882,0.00021991,2]
[392595627,1761717039404,-4194.92,0.00021995,10]
[392595628,1761717039414,-1647.60220295,0.00022,7]
[392595629,1761717039423,-163.5550713,0.00022,4]
[392595630,1761717039432,-203.19034112,0.00022,2]
[392595631,1761717039446,-3294.44,0.00022005,10]
[392595632,1761717039455,-168.0,0.00022025,2]
[392595633,1761717039464,-403.72361849,0.00022071,10]
[392595634,1761717039474,-500.0,0.00022073,2]
[392595635,1761717039483,-500.0,0.00022073,2]
[392595636,1761717039492,-500.0,0.00022073,2]
[392595637,1761717039502,-341.22561847,0.00022077,2]
[392595638,1761717039511,-64169.0111785,0.00022081,2]
[392595650,1761717040092,-727.12121926,0.00022081,2]
[392595651,1761717040105,-34003.47733419,0.00022081,2]
[392595692,1761717046642,-500.0,0.00021917,2]
[392595694,1761717046651,-500.0,0.00021917,2]
[392595696,1761717046661,-835.91218878,0.00022071,10]
[392595714,1761717046808,-663.70894306,0.00022071,10]
[392596518,1761717069222,209.8,0.00022,120]
[392596567,1761717949125,-166.01670058,0.00020904,2]
[392596568,1761717949145,-150.0,0.00020937,2]
[392596569,1761717949166,-1355.54533354,0.00021,2]
[392596570,1761718083107,214.16,0.00016244,2]
[392596664,1761718238492,-623.50688543,0.00020599,2]
[392596665,1761718238502,-2491.53351418,0.00020599,2]
[392596666,1761718238512,-1644.45466646,0.00021,2]
[392596667,1761718238521,-1200.0,0.00021008,2]
[392596668,1761718238530,-300.0,0.00021009,2]
[392596669,1761718238539,-3000.0,0.0002101,2]
[392596670,1761718238549,-3000.0,0.0002102,2]
[392596671,1761718238558,-3000.0,0.0002103,2]
[392596672,1761718238568,-3000.0,0.0002104,2]
[392596673,1761718238577,-204.73537109,0.0002104,2]
[392596674,1761718238586,-9227.78909254,0.0002104,2]
[392596675,1761718238595,-3000.0,0.0002105,2]
[392596676,1761718238604,-3000.0,0.0002106,2]
[392596677,1761718238613,-3000.0,0.0002107,2]
[392596678,1761718238623,-499.74,0.0002107,2]
[392596679,1761718238644,-3000.0,0.0002108,2]
[392596680,1761718238655,-3000.0,0.0002109,2]
[392596681,1761718238665,-2644.73027965,0.000211,2]
[392596682,1761718238677,-263.8384294,0.000211,2]
[392596690,1761718246744,-91.43129095,0.000211,2]
[392596691,1761718246753,-500.0,0.00021109,2]
[392596692,1761718246763,-500.0,0.00021109,2]
[392596693,1761718246772,-500.0,0.00021109,2]
[392596694,1761718246782,-3000.0,0.0002111,2]
[392596695,1761718246791,-3000.0,0.0002112,2]
[392596696,1761718246800,-166.01670058,0.00021123,2]
[392596697,1761718246809,-3000.0,0.0002113,2]
[392596698,1761718246818,-370000.0,0.0002113,2]
[392596699,1761718246828,-3000.0,0.0002114,2]
[392596700,1761718246838,-3000.0,0.0002115,2]
[392596701,1761718246847,-3000.0,0.0002116,2]
[392596702,1761718246857,-3000.0,0.0002117,2]
[392596703,1761718246866,-3000.0,0.0002118,2]
[392596704,1761718246875,-3000.0,0.0002119,2]
[392596705,1761718246884,-3000.0,0.000212,2]
[392596706,1761718246894,-3000.0,0.0002121,2]
[392596707,1761718246902,-3000.0,0.0002122,2]
[392596708,1761718246911,-3000.0,0.0002123,2]
[392596709,1761718246920,-3000.0,0.0002124,2]
[392596710,1761718246929,-3000.0,0.0002125,2]
[392596711,1761718246938,-3000.0,0.0002126,2]
[392596712,1761718246948,-3377.581557,0.0002127,2]
[392596713,1761718246956,-204.73537108,0.00021303,2]
[392596714,1761718246965,-166.01670058,0.00021342,2]
[392596715,1761718246974,-500.0,0.00021356,2]
[392596716,1761718246983,-166.01670058,0.00021562,2]
[392596717,1761718246992,-204.73537108,0.00021566,2]
[392596718,1761718247001,-504.37457025,0.00021683,2]
[392596719,1761718247010,-2015.48078273,0.00021683,2]
[392596720,1761718247020,-979.65,0.0002177,2]
[392596721,1761718247029,-166.01670058,0.00021781,2]
[392596722,1761718247038,-412.0,0.00021784,2]
[392596723,1761718247047,-528.56826245,0.0002182,2]
[392596724,1761718247056,-204.73537108,0.00021828,2]
[392596725,1761718247065,-184.124,0.00021881,2]
[392596726,1761718247079,-234.09753477,0.000219,2]
[392596727,1761718247088,-757.49,0.00021917,2]
[392596728,1761718247097,-516.83566585,0.00021917,2]
[392596729,1761718247107,-500.0,0.00021917,2]
[392596730,1761718247116,-500.0,0.00021917,2]
[392596731,1761718247125,-703.81,0.00021917,2]
[392596732,1761718247134,-500.0,0.00021917,2]
[392596733,1761718247143,-339.79576841,0.00021917,2]
[392596734,1761718247152,-500.0,0.00021917,2]
[392596735,1761718247161,-500.0,0.00021917,2]
[392596736,1761718247170,-523.58915895,0.00021917,2]
[392596737,1761718247180,-500.0,0.00021917,2]
[392596738,1761718247189,-500.0,0.00021917,2]
[392596739,1761718247199,-500.0,0.00021917,2]
[392596740,1761718247209,-500.0,0.00021917,2]
[392596741,1761718247218,-500.0,0.00021917,2]
[392596742,1761718247227,-500.0,0.00021917,2]
[392596743,1761718247236,-500.0,0.00021917,2]
[392596744,1761718247246,-500.0,0.00021917,2]
[392596745,1761718247255,-620.29,0.00021917,2]
[392596746,1761718247264,-500.0,0.00021917,2]
[392596747,1761718247273,-500.0,0.00021917,2]
[392596748,1761718247283,-500.0,0.00021917,2]
[392596749,1761718247292,-500.0,0.00021917,2]
[392596750,1761718247302,-500.0,0.00021917,2]
[392596751,1761718247311,-500.0,0.00021917,2]
[392596752,1761718247320,-500.0,0.00021917,2]
[392596753,1761718247333,-500.0,0.00021917,2]
[392596754,1761718247342,-528.44044219,0.00021917,2]
[392596755,1761718247351,-500.0,0.00021917,2]
[392596756,1761718247360,-500.0,0.00021917,2]
[392596757,1761718247370,-500.0,0.00021917,2]
[392596758,1761718247379,-500.0,0.00021917,2]
[392596759,1761718247388,-500.0,0.00021917,2]
[392596760,1761718247397,-500.0,0.00021917,2]
[392596761,1761718247406,-500.0,0.00021917,2]
[392596762,1761718247415,-500.0,0.00021917,2]
[392596763,1761718247424,-500.0,0.00021917,2]
[392596764,1761718247434,-500.0,0.00021917,2]
[392596765,1761718247443,-500.0,0.00021917,2]
[392596766,1761718247453,-500.0,0.00021917,2]
[392596767,1761718247462,-500.0,0.00021917,2]
[392596768,1761718247471,-500.0,0.00021917,2]
[392596769,1761718247481,-500.0,0.00021917,2]
[392596770,1761718247490,-500.0,0.00021917,2]
[392596771,1761718247499,-500.0,0.00021917,2]
[392596772,1761718247508,-500.0,0.00021917,2]
[392596773,1761718247517,-500.0,0.00021917,2]
[392596774,1761718247526,-500.0,0.00021917,2]
[392596775,1761718247535,-500.0,0.00021917,2]
[392596776,1761718247545,-500.0,0.00021917,2]
[392596777,1761718247554,-500.0,0.00021917,2]
[392596778,1761718247563,-500.0,0.00021917,2]
[392596779,1761718247572,-500.0,0.00021917,2]
[392596780,1761718247581,-500.0,0.00021917,2]
[392596781,1761718247590,-500.0,0.00021917,2]
[392596782,1761718247599,-500.0,0.00021917,2]
[392596783,1761718247608,-500.0,0.00021917,2]
[392596784,1761718247617,-500.0,0.00021917,2]
[392596785,1761718247627,-500.0,0.00021917,2]
[392596786,1761718247636,-531.76,0.00021917,2]
[392596787,1761718247645,-500.0,0.00021917,2]
[392596788,1761718247654,-500.0,0.00021917,2]
[392596789,1761718247663,-645.21,0.00021917,2]
[392596790,1761718247672,-500.0,0.00021917,2]
[392596791,1761718247682,-500.0,0.00021917,2]
[392596792,1761718247691,-506.07,0.00021917,2]
[392596793,1761718247701,-864.29,0.00021917,2]
[392596794,1761718247711,-500.0,0.00021917,2]
[392596795,1761718247720,-500.0,0.00021917,2]
[392596796,1761718247729,-500.0,0.00021917,2]
[392596797,1761718247738,-500.0,0.00021917,2]
[392596798,1761718247747,-500.0,0.00021917,2]
[392596799,1761718247756,-500.0,0.00021917,2]
[392596800,1761718247765,-500.0,0.00021917,2]
[392596801,1761718247774,-500.0,0.00021917,2]
[392596802,1761718247783,-1116.16,0.00021917,2]
[392596803,1761718247793,-500.0,0.00021917,2]
[392596804,1761718247802,-500.0,0.00021917,2]
[392596805,1761718247811,-4625.72,0.00021917,2]
[392596806,1761718247820,-500.0,0.00021917,2]
[392596807,1761718247829,-500.0,0.00021917,2]
[392596808,1761718247839,-514.45554134,0.00021917,2]
[392596809,1761718247848,-500.0,0.00021917,2]
[392596810,1761718247857,-500.0,0.00021917,2]
[392596811,1761718247866,-189.11296469,0.00021917,2]
[392596812,1761718247875,-500.0,0.00021917,2]
[392596813,1761718247884,-500.0,0.00021917,2]
[392596814,1761718247894,-500.0,0.00021917,2]
[392596815,1761718247903,-500.0,0.00021917,2]
[392596816,1761718247913,-500.0,0.00021917,2]
[392596817,1761718247922,-959.54,0.00021917,2]